bitfinex/quotes_ETHUSD_20230404
["timestamp","ask_amount","ask_price","bid_price","bid_amount"]
[1680589281656,6.18629033,1808.3,1808.2,1.37186524]
[1680589291483,6.18315243,1808.3,1808.2,1.37186524]
[1680589300427,6.18315243,1808.3,1808.2,1.51905176]
[1680589302217,6.18315243,1808.3,1808.2,1.37186524]
[1680589305715,6.18315243,1808.3,1808.2,2.23765725]
[1680589311130,0.002,1808.3,1808.2,2.23765725]
[1680589311332,3.18513025,1808.3,1808.2,2.23765725]
[1680589312386,3.18513025,1808.4,1808.2,2.23765725]
[1680589315391,3.18307499,1808.4,1808.2,2.23765725]
[1680589321708,5.94909717,1808.3,1808.2,2.23765725]
[1680589321894,6.18109717,1808.3,1808.2,1.37186524]
[1680589322414,6.18109717,1808.3,1808.2,2.23765725]
[1680589322598,6.18109717,1808.3,1808.2,1.37186524]
[1680589325199,6.40229717,1808.3,1808.2,1.37186524]
[1680589325619,7.78896159,1808.3,1808.2,1.37186524]
[1680589327226,13.60496159,1808.3,1808.2,1.37186524]
[1680589327506,14.05161719,1808.3,1808.2,1.37186524]
[1680589330965,17.05161719,1808.3,1808.2,1.37186524]
[1680589340706,16.60921719,1808.3,1808.2,1.37186524]
[1680589341894,16.60921719,1808.3,1808.2,1.37186524]
[1680589344746,16.61721719,1808.3,1808.2,1.37186524]
[1680589345224,16.60921719,1808.3,1808.2,1.37186524]
[1680589346499,16.38801719,1808.3,1808.2,1.37186524]
[1680589346898,16.60921719,1808.3,1808.2,1.37186524]
[1680589347443,16.61721719,1808.3,1808.2,1.37186524]
[1680589347637,16.61221719,1808.3,1808.2,1.37186524]
[1680589347839,16.38801719,1808.3,1808.2,1.37186524]
[1680589348044,9.18109717,1808.3,1808.2,1.37186524]
[1680589348544,9.41029717,1808.3,1808.2,1.37186524]
[1680589348899,9.40229717,1808.3,1808.2,1.37186524]
[1680589349100,9.41029717,1808.3,1808.2,1.37186524]
[1680589350062,9.40229717,1808.3,1808.2,1.37186524]
[1680589350216,9.18109717,1808.3,1808.2,1.37186524]
[1680589350577,9.18909717,1808.3,1808.2,1.37186524]
[1680589350760,9.18109717,1808.3,1808.2,1.37186524]
[1680589351260,9.40229717,1808.3,1808.2,1.37186524]
[1680589351457,9.18109717,1808.3,1808.2,1.37186524]
[1680589353921,9.18909717,1808.3,1808.2,1.37186524]
[1680589354320,9.41029717,1808.3,1808.2,1.37186524]
[1680589354554,9.40229717,1808.3,1808.2,1.37186524]
[1680589354763,9.18109717,1808.3,1808.2,1.37186524]
[1680589355333,9.18909717,1808.3,1808.2,1.37186524]
[1680589355951,6.18109717,1808.3,1808.2,1.37186524]
[1680589357581,6.18909717,1808.3,1808.2,1.37186524]
[1680589358061,6.18109717,1808.3,1808.2,1.37186524]
[1680589359078,6.18909717,1808.3,1808.2,1.37186524]
[1680589366776,6.18109717,1808.3,1808.2,1.37186524]
[1680589367280,6.18909717,1808.3,1808.2,1.37186524]
[1680589370978,6.18109717,1808.3,1808.2,1.37186524]
[1680589371281,6.18909717,1808.3,1808.2,1.37186524]
[1680589376008,6.18409717,1808.3,1808.2,1.37186524]
[1680589376215,6.18109717,1808.3,1808.2,1.37186524]
[1680589376370,3.41507499,1808.3,1808.2,1.59307524]
[1680589376574,3.19307499,1808.4,1808.2,1.54117276]
[1680589376787,3.19107499,1808.4,1808.2,1.54117276]
[1680589377168,3.18307499,1808.4,1808.2,1.54117276]
[1680589389289,3.18307499,1808.4,1808.2,1.37186524]
[1680589389706,3.40426499,1808.4,1808.2,1.37186524]
[1680589390085,3.18307499,1808.4,1808.2,1.37186524]
[1680589392821,5.94909717,1808.3,1808.2,1.37186524]
[1680589393021,6.18109717,1808.3,1808.2,1.37186524]
[1680589393327,6.18909717,1808.3,1808.2,1.37186524]
[1680589393511,6.18109717,1808.3,1808.2,1.37186524]
[1680589401706,6.18909717,1808.3,1808.2,1.37186524]
[1680589401907,6.18109717,1808.3,1808.2,1.37186524]
[1680589404428,6.18109717,1808.3,1808.2,1.59307524]
[1680589405854,6.18109717,1808.3,1808.2,1.37186524]
[1680589410152,6.40229717,1808.3,1808.2,1.37186524]
[1680589410309,6.18109717,1808.3,1808.2,1.37186524]
[1680589410649,6.40229717,1808.3,1808.2,1.37186524]
[1680589410840,6.18109717,1808.3,1808.2,1.37186524]
[1680589412651,12.63855245,1808.3,1808.2,1.37186524]
[1680589418167,12.85975245,1808.3,1808.2,1.37186524]
[1680589418633,12.63855245,1808.3,1808.2,1.37186524]
[1680589419452,12.85975245,1808.3,1808.2,1.37186524]
[1680589420062,12.63855245,1808.3,1808.2,1.37186524]
[1680589421308,6.82255245,1808.3,1808.2,1.37186524]
[1680589422387,12.63855245,1808.3,1808.2,1.37186524]
[1680589423107,12.85975245,1808.3,1808.2,1.37186524]
[1680589426565,6.82255245,1808.3,1808.2,1.37186524]
[1680589427509,7.04375245,1808.3,1808.2,1.37186524]
[1680589427870,12.85975245,1808.3,1808.2,1.37186524]
[1680589428281,12.63855245,1808.3,1808.2,1.37186524]
[1680589428992,6.82255245,1808.3,1808.2,1.37186524]
[1680589429691,6.18109717,1808.3,1808.2,1.37186524]
[1680589430016,6.40229717,1808.3,1808.2,1.37186524]
[1680589432040,6.18109717,1808.3,1808.2,1.37186524]
[1680589436548,6.40229717,1808.3,1808.2,1.37186524]
[1680589439642,12.90729717,1808.3,1808.2,1.37186524]
[1680589439857,19.36724535,1808.3,1808.2,1.37186524]
[1680589440111,19.35924535,1808.3,1808.2,1.36849505]
[1680589440937,18.77959781,1808.3,1808.2,1.36849505]
[1680589441934,19.35924535,1808.3,1808.2,1.36849505]
[1680589443433,18.77959781,1808.3,1808.2,1.36849505]
[1680589443625,19.35924535,1808.3,1808.2,1.36849505]
[1680589443832,18.77959781,1808.3,1808.2,1.36849505]
[1680589444033,18.91684535,1808.3,1808.2,1.36849505]
[1680589445125,18.33719781,1808.3,1808.2,1.36849505]
[1680589445324,10.64414797,1808.3,1808.2,1.36849505]
[1680589445570,9.17229717,1808.3,1808.2,1.36849505]
[1680589446666,9.40229717,1808.3,1808.2,1.36849505]
[1680589448190,6.18109717,1808.3,1808.2,1.38679235]
[1680589449304,6.18109717,1808.3,1808.2,1.60800235]
[1680589450074,6.18109717,1808.3,1808.2,1.38679235]
[1680589450684,6.18109717,1808.3,1808.2,1.77880259]
[1680589453006,6.18109717,1808.3,1808.2,1.55759259]
[1680589453166,6.18109717,1808.3,1808.2,1.77880259]
[1680589453797,6.18109717,1808.3,1808.2,1.53929529]
[1680589454108,6.18109717,1808.3,1808.2,1.76050529]
[1680589454462,6.18109717,1808.3,1808.2,1.53929529]
[1680589455113,0.232,1808.3,1808.2,1.53929529]
[1680589455324,3.18307499,1808.4,1808.2,1.53929529]
[1680589455480,5.94909717,1808.4,1808.2,1.53929529]
[1680589455680,5.95109717,1808.4,1808.2,1.53929529]
[1680589458518,5.95909717,1808.4,1808.2,1.53929529]
[1680589458725,5.95109717,1808.4,1808.2,1.53929529]
[1680589459301,6.17909717,1808.3,1808.2,1.36849505]
[1680589459529,6.18109717,1808.3,1808.2,1.36849505]
[1680589460443,6.40229717,1808.3,1808.2,1.36849505]
[1680589460610,6.18109717,1808.3,1808.2,1.36849505]
[1680589460814,6.86556489,1808.3,1808.2,1.36849505]
[1680589461016,7.08676489,1808.3,1808.2,1.36849505]
[1680589461346,6.86556489,1808.3,1808.2,1.36849505]
[1680589461532,7.08676489,1808.3,1808.2,1.36849505]
[1680589461730,13.34516489,1808.3,1808.2,1.36849505]
[1680589462106,17.99528615,1808.3,1808.2,1.36849505]
[1680589463201,18.57493369,1808.3,1808.2,1.36849505]
[1680589463550,10.08676489,1808.3,1808.2,1.36849505]
[1680589463715,9.86556489,1808.3,1808.2,1.36849505]
[1680589463906,10.08676489,1808.3,1808.2,1.36849505]
[1680589464307,9.86556489,1808.3,1808.2,1.36849505]
[1680589464507,10.08676489,1808.3,1808.2,1.36849505]
[1680589464726,9.86556489,1808.3,1808.2,1.36849505]
[1680589466956,10.08676489,1808.3,1808.2,1.36849505]
[1680589467145,9.86556489,1808.3,1808.2,1.36849505]
[1680589467965,10.08676489,1808.3,1808.2,1.36849505]
[1680589468252,9.86556489,1808.3,1808.2,1.36849505]
[1680589470452,10.08676489,1808.3,1808.2,1.36849505]
[1680589471662,9.86556489,1808.3,1808.2,1.36849505]
[1680589472663,10.08676489,1808.3,1808.2,1.36849505]
[1680589473531,16.58876489,1808.3,1808.2,1.36849505]
[1680589477070,17.03116489,1808.3,1808.2,1.36849505]
[1680589477440,17.03542049,1808.3,1808.2,1.36849505]
[1680589482143,15.68582049,1808.3,1808.2,1.36849505]
[1680589482355,9.18535277,1808.3,1808.2,1.36849505]
[1680589483581,6.18109717,1808.3,1808.2,1.36849505]
[1680589483782,5.9488885,1808.3,1808.2,1.36849505]
[1680589485394,6.1788885,1808.3,1808.2,1.36849505]
[1680589485580,6.1788885,1808.3,1808.2,1.51777439]
[1680589500718,6.1788885,1808.3,1808.2,1.36849505]
[1680589501822,6.1788885,1808.3,1808.2,1.36468053]
[1680589503491,6.1868885,1808.3,1808.2,1.36468053]
[1680589503643,6.1788885,1808.3,1808.2,1.36468053]
[1680589506143,6.4000885,1808.3,1808.2,1.36468053]
[1680589506447,6.86393535,1808.3,1808.2,1.36468053]
[1680589506951,7.08513535,1808.3,1808.2,1.36468053]
[1680589507345,6.86393535,1808.3,1808.2,1.36468053]
[1680589508743,7.08513535,1808.3,1808.2,1.36468053]
[1680589509745,6.86393535,1808.3,1808.2,1.36468053]
[1680589510227,7.08513535,1808.3,1808.2,1.36468053]
[1680589510436,7.52753535,1808.3,1808.2,1.36468053]
[1680589510620,7.53179095,1808.3,1808.2,1.36468053]
[1680589518498,13.34779095,1808.3,1808.2,1.36468053]
[1680589518754,14.03779095,1808.3,1808.2,1.36468053]
[1680589519511,14.03779095,1808.3,1808.2,0.09281529]
[1680589519712,19.47809095,1808.3,1808.2,0.09281529]
[1680589520254,19.48109095,1808.3,1808.2,0.09281529]
[1680589520459,19.47809095,1808.3,1808.2,0.09281529]
[1680589521559,20.43821072,1808.3,1808.2,0.09281529]
[1680589521758,23.43821072,1808.3,1808.2,0.09281529]
[1680589522161,23.43821095,1808.3,1808.2,0.09281529]
[1680589522383,23.44621095,1808.3,1808.2,0.09281529]
[1680589524240,22.48609095,1808.3,1808.2,0.09281529]
[1680589529143,11.22979095,1808.3,1808.2,0.09281529]
[1680589529350,10.53553535,1808.3,1808.2,0.09281529]
[1680589535509,11.49562723,1808.3,1808.2,0.09281529]
[1680589535907,10.53553535,1808.3,1808.2,0.09281529]
[1680589539613,10.53553535,1808.3,1808.2,1.37671789]
[1680589541903,9.4080885,1808.3,1808.2,1.37671789]
[1680589542108,9.1868885,1808.3,1808.2,1.37671789]
[1680589542288,9.4080885,1808.3,1808.2,1.37671789]
[1680589542505,6.1868885,1808.3,1808.2,1.37671789]
[1680589542685,9.1868885,1808.3,1808.2,1.37671789]
[1680589551125,6.1868885,1808.3,1808.2,1.37671789]
[1680589553633,6.1801944,1808.3,1808.2,1.37671789]
[1680589553807,6.1751944,1808.3,1808.2,1.37671789]
[1680589563366,6.3963944,1808.3,1808.2,1.37671789]
[1680589563670,7.13903659,1808.3,1808.2,1.37671789]
[1680589564722,7.13903659,1808.3,1808.2,0.95761678]
[1680589568474,7.14403659,1808.3,1808.2,0.95761678]
[1680589568634,7.14703659,1808.3,1808.2,0.95761678]
[1680589568829,7.13903659,1808.3,1808.2,0.95761678]
[1680589573343,7.58143659,1808.3,1808.2,0.95761678]
[1680589573548,9.1211973,1808.3,1808.2,0.95761678]
[1680589573742,8.54154976,1808.3,1808.2,0.95761678]
[1680589573943,8.54154263,1808.3,1808.2,0.95761678]
[1680589575287,9.12119017,1808.3,1808.2,0.95761678]
[1680589575485,8.54154263,1808.3,1808.2,0.95761678]
[1680589576050,7.58143659,1808.3,1808.2,0.95761678]
[1680589576589,7.58143659,1808.3,1808.2,0.09281529]
[1680589576961,9.12119252,1808.3,1808.2,0.09281529]
[1680589577678,8.54154498,1808.3,1808.2,0.09281529]
[1680589578281,9.12119252,1808.3,1808.2,0.09281529]
[1680589578711,7.58143659,1808.3,1808.2,0.09281529]
[1680589579117,9.12118378,1808.3,1808.2,0.09281529]
[1680589579318,14.93718378,1808.3,1808.2,0.09281529]
[1680589581205,19.94068378,1808.3,1808.2,0.09281529]
[1680589581603,19.36104383,1808.3,1808.2,0.09281529]
[1680589582018,19.94069137,1808.3,1808.2,0.09281529]
[1680589586204,19.94069137,1808.3,1808.2,0.09281529]
[1680589592655,12.71844918,1808.3,1808.2,0.09281529]
[1680589592874,7.48494918,1808.3,1808.2,0.09281529]
[1680589593156,7.12648815,1808.3,1808.2,0.09281529]
[1680589593557,7.70618318,1808.3,1808.2,0.09281529]
[1680589593781,7.48498318,1808.3,1808.2,0.95821936]
[1680589594187,7.13533564,1808.3,1808.2,0.95821936]
[1680589594383,6.4043944,1808.3,1808.2,0.95821936]
[1680589594582,6.3963944,1808.3,1808.2,0.95821936]
[1680589595457,7.35648231,1808.3,1808.2,0.95821936]
[1680589595688,6.3963944,1808.3,1808.2,0.95821936]
[1680589600194,7.35646619,1808.3,1808.2,0.95821936]
[1680589600549,6.3963944,1808.3,1808.2,0.95821936]
[1680589600986,9.3963944,1808.3,1808.2,0.95821936]
[1680589602483,10.3564627,1808.3,1808.2,0.95821936]
[1680589602687,9.3963944,1808.3,1808.2,0.95821936]
[1680589602914,10.35646269,1808.3,1808.2,0.95821936]
[1680589603288,9.3963944,1808.3,1808.2,0.95821936]
[1680589603535,10.35646269,1808.3,1808.2,0.95821936]
[1680589603700,9.3963944,1808.3,1808.2,0.95821936]
[1680589604093,10.35646258,1808.3,1808.2,0.95821936]
[1680589607927,10.93611012,1808.3,1808.2,0.95821936]
[1680589608222,10.94411012,1808.3,1808.2,0.95821936]
[1680589608426,10.93611012,1808.3,1808.2,0.95821936]
[1680589609316,11.37851012,1808.3,1808.2,0.95821936]
[1680589609530,10.79886258,1808.3,1808.2,0.95821936]
[1680589610031,11.37851012,1808.3,1808.2,0.95821936]
[1680589612403,10.93611012,1808.3,1808.2,0.95821936]
[1680589616636,10.35646258,1808.3,1808.2,0.95821936]
[1680589619637,10.13526258,1808.3,1808.2,0.95821936]
[1680589620524,10.35646258,1808.3,1808.2,0.95821936]
[1680589620725,10.71491012,1808.3,1808.2,0.95821936]
[1680589621436,10.13526258,1808.3,1808.2,0.95821936]
[1680589621627,10.71491012,1808.3,1808.2,0.95821936]
[1680589621947,10.13526258,1808.3,1808.2,0.95821936]
[1680589624699,10.13526258,1808.3,1808.2,0.82546491]
[1680589626353,10.13526258,1808.3,1808.2,0.71964297]
[1680589628624,9.1751944,1808.3,1808.2,0.71964297]
[1680589632177,9.1781944,1808.3,1808.2,0.71964297]
[1680589632668,9.1751944,1808.3,1808.2,0.71964297]
[1680589636611,10.13524303,1808.3,1808.2,0.71964297]
[1680589638372,10.71489057,1808.3,1808.2,0.71964297]
[1680589644272,10.71489057,1808.3,1808.2,0.80160727]
[1680589644273,7.95477116,1808.3,1808.2,0.80160727]
[1680589644613,0.002,1808.3,1808.2,2.15523727]
[1680589644820,3.18307499,1808.4,1808.3,0.0005355]
[1680589645007,3.18307499,1808.4,1808.3,0.17187078]
[1680589645526,0.13797383,1808.5,1808.3,0.17187078]
[1680589645667,3.18307499,1808.4,1808.3,0.73344004]
[1680589647330,3.18307499,1808.4,1808.3,0.95464004]
[1680589647692,3.18307499,1808.4,1808.3,1.39704004]
[1680589648419,3.327,1808.6,1808.3,1.41533633]
[1680589648622,3.317,1808.6,1808.4,0.14153363]
[1680589648918,0.13874732,1808.7,1808.5,0.22117]
[1680589649125,3.317,1808.6,1808.5,0.22117]
[1680589649344,3.317,1808.6,1808.5,0.30167736]
[1680589651137,3.317,1808.6,1808.5,0.31997164]
[1680589651353,0.002,1808.7,1808.5,1.64703164]
[1680589651668,3.45386377,1808.8,1808.5,0.31997164]
[1680589651998,3.45386377,1808.8,1808.5,1.00997164]
[1680589652203,3.45386377,1808.8,1808.6,0.32215716]
[1680589654551,0.13686377,1808.8,1808.6,0.32215716]
[1680589655622,0.13686377,1808.8,1808.6,0.76448716]
[1680589655818,3.317,1808.9,1808.6,0.32215716]
[1680589656346,3.317,1808.9,1808.6,0.10099716]
[1680589656508,3.45533184,1808.9,1808.6,0.32215716]
[1680589656709,3.45533184,1808.9,1808.6,0.10099716]
[1680589656905,0.13833184,1808.9,1808.6,0.10099716]
[1680589657337,0.13833184,1808.9,1808.6,0.32215716]
[1680589657649,0.13833184,1808.9,1808.7,0.55761098]
[1680589657835,0.13833184,1808.9,1808.7,0.64558779]
[1680589659755,0.13833184,1808.9,1808.7,0.86673779]
[1680589660051,0.13833184,1808.9,1808.7,0.64558779]
[1680589660423,0.13833184,1808.9,1808.7,0.86673779]
[1680589661905,0.13833184,1808.9,1808.7,1.30903779]
[1680589662258,0.13833184,1808.9,1808.8,0.35204378]
[1680589663423,0.13833184,1808.9,1808.8,0.13090378]
[1680589666126,0.13833184,1808.9,1808.8,0.35204378]
[1680589669365,0.13566752,1808.9,1808.8,0.35204378]
[1680589672656,3.317,1809.0,1808.8,1.35147698]
[1680589672867,3.317,1809.0,1808.9,0.3562677]
[1680589673866,3.45298441,1809.0,1808.9,0.3562677]
[1680589674034,0.01,1809.1,1808.9,0.7985177]
[1680589674379,3.317,1809.2,1808.9,1.2505177]
[1680589674519,3.317,1809.2,1809.1,0.2211]
[1680589674721,3.327,1809.3,1809.1,0.2211]
[1680589674923,6.08302218,1809.3,1809.1,0.2211]
[1680589675158,6.09302218,1809.3,1809.1,0.2211]
[1680589675342,3.319,1809.3,1809.1,0.73761618]
[1680589675547,3.317,1809.3,1809.1,0.73761618]
[1680589676336,0.139285,1809.3,1809.1,0.29541618]
[1680589676666,0.139285,1809.3,1809.1,0.73761618]
[1680589676832,0.139285,1809.3,1809.2,0.07376162]
[1680589677349,0.139285,1809.3,1809.2,0.29485162]
[1680589678121,0.139285,1809.3,1809.2,0.07376162]
[1680589678520,0.139285,1809.3,1809.1,0.31369438]
[1680589680164,0.139285,1809.3,1809.1,0.09260438]
[1680589681144,0.139285,1809.3,1809.1,0.31370438]
[1680589683462,0.139285,1809.3,1809.1,0.09260438]
[1680589686278,0.139285,1809.3,1809.0,0.76985177]
[1680589686485,0.139285,1809.3,1809.0,0.07985177]
[1680589686836,0.11000001,1809.4,1809.0,0.07985177]
[1680589687246,0.11000001,1809.4,1809.0,0.30096177]
[1680589687658,0.25013015,1809.4,1809.1,0.5038805]
[1680589691096,3.317,1809.3,1809.1,0.5038805]
[1680589691711,3.31301593,1809.3,1809.0,0.002]
[1680589691895,3.31301593,1809.3,1809.0,0.87315002]
[1680589692210,3.31301593,1809.3,1809.0,0.87515002]
[1680589692507,3.31301593,1809.3,1809.0,0.65404002]
[1680589692711,3.31301593,1809.3,1809.0,0.65204002]
[1680589693304,3.31301593,1809.3,1808.9,0.24540022]
[1680589693602,3.31301593,1809.3,1808.9,0.23940022]
[1680589694001,3.31301593,1809.2,1808.9,0.23940022]
[1680589694219,3.31301593,1809.2,1808.9,0.68365022]
[1680589694391,3.31301593,1809.2,1808.9,0.68765022]
[1680589695313,3.31301593,1809.0,1808.8,0.006]
[1680589695718,3.31301593,1809.0,1808.7,0.67914]
[1680589702313,3.31301593,1809.0,1808.7,0.458]
[1680589702519,3.31301593,1809.0,1808.7,0.67915]
[1680589702726,3.31301593,1809.0,1808.8,0.51716574]
[1680589718447,3.31301593,1809.0,1808.8,1.25501731]
[1680589718656,3.31301593,1809.0,1808.8,1.26101731]
[1680589719281,3.31301593,1809.0,1808.8,1.25901731]
[1680589720540,3.31301593,1809.0,1808.8,1.26101731]
[1680589721440,3.31501593,1809.1,1808.8,1.26101731]
[1680589721669,3.31301593,1809.1,1808.8,1.25501731]
[1680589722272,3.31301593,1809.1,1808.9,0.12550173]
[1680589722565,3.31301593,1809.1,1808.9,0.86476139]
[1680589722774,3.31301593,1809.1,1808.9,0.73925966]
[1680589727377,3.31301593,1809.1,1808.9,0.51814966]
[1680589728642,3.31301593,1809.1,1808.8,0.22113]
[1680589729547,3.31301593,1809.1,1808.8,0.66341]
[1680589732643,3.31301593,1809.1,1808.9,0.51814966]
[1680589732953,3.31301593,1809.1,1808.9,0.73926966]
[1680589743415,0.002,1809.2,1808.9,1.38685383]
[1680589743616,3.319,1809.3,1808.9,2.70464584]
[1680589743862,3.57713015,1809.4,1808.9,3.85866369]
[1680589744016,6.33315233,1809.4,1809.1,0.2211]
[1680589744224,6.33515233,1809.4,1809.1,0.2211]
[1680589747774,6.33515233,1809.4,1809.2,0.45305036]
[1680589748705,6.33515233,1809.4,1809.1,0.2211]
[1680589749403,6.33515233,1809.4,1809.0,0.68160921]
[1680589749551,6.33515233,1809.4,1809.0,0.88057275]
[1680589750196,6.33515233,1809.4,1809.0,0.43835275]
[1680589760404,3.317,1809.2,1809.0,0.01828921]
[1680589760623,6.08302218,1809.2,1808.9,0.006]
[1680589760773,6.08502218,1809.2,1808.9,0.22712]
[1680589761659,6.08502218,1809.2,1808.9,0.006]
[1680589761902,6.08502218,1809.2,1808.8,0.22713]
[1680589762094,6.08502218,1809.2,1808.8,0.51873899]
[1680589762693,6.08502218,1809.2,1808.9,0.45385062]
[1680589763599,6.08502218,1809.2,1808.8,0.29760899]
[1680589763787,6.08502218,1809.2,1808.9,0.22112]
[1680589763987,6.08502218,1809.2,1808.8,0.29760899]
[1680589764206,6.08502218,1809.2,1808.8,0.29160899]
[1680589764406,6.08502218,1809.2,1808.8,0.22113]
[1680589765377,6.08502218,1809.2,1808.7,1.54493201]
[1680589770813,6.08502218,1809.2,1808.7,1.98723201]
[1680589773420,6.08502218,1809.2,1808.7,3.14124986]
[1680589775725,6.08502218,1809.2,1808.8,0.86579201]
[1680589775928,6.08502218,1809.2,1808.8,1.403047]
[1680589776085,6.08502218,1809.2,1808.8,1.407047]
[1680589777612,6.08502218,1809.2,1808.9,0.45385062]
[1680589778631,3.317,1809.0,1808.8,0.87179201]
[1680589778796,3.317,1809.0,1808.8,0.006]
[1680589778996,3.317,1809.0,1808.7,0.87179201]
[1680589779220,3.317,1809.0,1808.7,2.06907832]
[1680589780397,3.317,1809.0,1808.7,2.29022832]
[1680589782035,3.317,1809.0,1808.7,3.61713832]
[1680589782394,3.317,1809.0,1808.7,4.77115617]
[1680589783016,3.319,1809.1,1808.7,10.59015617]
[1680589783217,3.317,1809.1,1808.8,1.92480763]
[1680589783537,3.317,1809.1,1808.9,1.52916201]
[1680589784099,3.319,1809.2,1808.9,1.52916201]
[1680589784331,3.317,1809.2,1808.9,1.53116201]
[1680589784534,3.317,1809.2,1809.0,0.1531162]
[1680589784727,3.317,1809.2,1809.0,0.3742162]
[1680589790327,3.317,1809.2,1809.0,0.1531162]
[1680589790528,3.317,1809.2,1808.9,1.09290201]
[1680589792647,3.317,1809.2,1809.0,0.46050935]
[1680589801769,6.08302218,1809.2,1809.0,0.46050935]
[1680589801952,6.08502218,1809.2,1809.0,0.46050935]
[1680589802539,6.08302218,1809.1,1809.0,0.46050935]
[1680589802758,6.9925244,1809.1,1809.0,0.46050935]
[1680589803574,6.9925244,1809.1,1809.0,3.16050935]
[1680589803735,6.9925244,1809.1,1809.0,3.16650935]
[1680589803936,6.9925244,1809.1,1809.0,3.16050935]
[1680589806470,6.31502218,1809.1,1809.0,3.16050935]
[1680589813466,6.53612218,1809.1,1809.0,3.16050935]
[1680589814995,16.48356046,1809.1,1809.0,3.16050935]
[1680589815210,18.02290456,1809.1,1809.0,3.16050935]
[1680589815379,18.89237586,1809.1,1809.0,3.16050935]
[1680589815580,21.84577995,1809.1,1809.0,3.16050935]
[1680589815803,21.85377995,1809.1,1809.0,3.16050935]
[1680589817203,20.98430865,1809.1,1809.0,3.16050935]
[1680589818617,20.98856425,1809.1,1809.0,3.16050935]
[1680589819117,21.55259288,1809.1,1809.0,3.16050935]
[1680589821317,20.97294534,1809.1,1809.0,3.16050935]
[1680589822323,20.97294534,1809.1,1809.0,2.7]
[1680589823303,20.01324878,1809.1,1809.0,2.7]
[1680589823628,19.57104878,1809.1,1809.0,2.7]
[1680589823795,12.84094878,1809.1,1809.0,2.7]
[1680589824530,12.61094878,1809.1,1809.0,2.7]
[1680589824727,10.34754469,1809.1,1809.0,2.7]
[1680589824920,10.56864469,1809.1,1809.0,2.7]
[1680589825334,11.01084469,1809.1,1809.0,2.7]
[1680589825709,11.24084469,1809.1,1809.0,2.7]
[1680589829948,11.24084469,1809.1,1809.0,2.7]
[1680589835350,11.92684469,1809.1,1809.0,2.7]
[1680589836290,14.01683391,1809.1,1809.0,2.7]
[1680589837389,15.12300649,1809.1,1809.0,2.7]
[1680589838058,15.11500649,1809.1,1809.0,2.69612468]
[1680589839091,14.42500649,1809.1,1809.0,2.69612468]
[1680589845693,15.38473143,1809.1,1809.0,2.69612468]
[1680589845993,14.42500649,1809.1,1809.0,2.69612468]
[1680589846497,15.96437763,1809.1,1809.0,2.69612468]
[1680589848611,15.27837763,1809.1,1809.0,2.69612468]
[1680589851617,14.83617763,1809.1,1809.0,2.69612468]
[1680589852118,11.41891583,1809.1,1809.0,2.69612468]
[1680589852333,9.660908,1809.1,1809.0,2.69612468]
[1680589852503,6.08126046,1809.1,1809.0,2.69612468]
[1680589853011,6.08126046,1809.1,1809.0,3.14295092]
[1680589853227,3.319,1809.1,1809.0,3.14295092]
[1680589853406,3.317,1809.1,1809.0,3.45724601]
[1680589853608,3.317,1809.1,1809.0,3.45924601]
[1680589853905,3.317,1809.1,1809.0,3.46324601]
[1680589854718,3.319,1809.2,1809.0,3.46324601]
[1680589855039,6.08302218,1809.2,1809.1,0.3463246]
[1680589855320,6.31502218,1809.2,1809.1,0.3463246]
[1680589855531,3.319,1809.2,1809.1,0.5857128]
[1680589855680,3.317,1809.2,1809.1,0.3646128]
[1680589856292,3.317,1809.2,1809.1,0.3706128]
[1680589856494,0.25213015,1809.4,1809.1,1.7179128]
[1680589856684,3.56713015,1809.4,1809.3,0.22107]
[1680589856922,3.56713015,1809.4,1809.2,1.08687128]
[1680589857719,3.56713015,1809.4,1809.2,0.86579128]
[1680589857720,0.25013015,1809.4,1809.2,0.86579128]
[1680589857922,0.25013015,1809.4,1809.3,0.08657913]
[1680589858931,6.33315233,1809.4,1809.2,0.86579128]
[1680589859089,2.76602218,1809.3,1809.2,0.006]
[1680589859289,6.53409218,1809.3,1809.1,0.006]
[1680589859488,6.31502218,1809.3,1809.1,0.006]
[1680589859689,6.31502218,1809.3,1809.0,3.14895092]
[1680589859916,6.31502218,1809.3,1809.0,4.93911801]
[1680589860119,6.31502218,1809.3,1809.0,5.16022801]
[1680589860330,6.31502218,1809.3,1809.0,5.16222801]
[1680589861546,3.317,1809.2,1809.0,5.85222801]
[1680589861846,3.317,1809.2,1809.0,6.05645801]
[1680589862045,3.317,1809.2,1809.1,0.8267458]
[1680589862243,3.317,1809.2,1809.1,0.8327458]
[1680589862631,0.232,1809.3,1809.1,0.8327458]
[1680589862822,0.22641298,1809.3,1809.1,0.8267458]
[1680589863217,0.22641298,1809.3,1809.1,0.6056458]
[1680589863419,3.317,1809.2,1809.1,0.6056458]
[1680589863619,6.08302218,1809.2,1809.1,0.6056458]
[1680589863836,6.08502218,1809.2,1809.1,0.6056458]
[1680589864412,6.08502218,1809.2,1809.0,3.16724013]
[1680589865023,6.08502218,1809.2,1809.0,3.14895092]
[1680589865226,6.30611218,1809.2,1809.0,3.14895092]
[1680589865425,0.23,1809.1,1809.0,3.14895092]
[1680589865625,6.31302218,1809.1,1809.0,3.14895092]
[1680589865841,6.31502218,1809.1,1809.0,3.14895092]
[1680589866243,6.31502218,1809.1,1809.0,3.14295092]
[1680589867659,6.53612218,1809.1,1809.0,3.14295092]
[1680589868649,6.31502218,1809.1,1809.0,3.14295092]
[1680589869155,6.97832218,1809.1,1809.0,3.14295092]
[1680589869363,6.53612218,1809.1,1809.0,3.14295092]
[1680589869534,7.2347544,1809.1,1809.0,3.14295092]
[1680589870273,10.6849544,1809.1,1809.0,3.14295092]
[1680589872076,17.1939544,1809.1,1809.0,3.14295092]
[1680589872277,17.7279544,1809.1,1809.0,3.14295092]
[1680589873219,17.7279544,1809.1,1809.0,2.69612468]
[1680589873830,16.5039544,1809.1,1809.0,2.69612468]
[1680589874542,10.6849544,1809.1,1809.0,2.69612468]
[1680589883337,16.5039544,1809.1,1809.0,2.69612468]
[1680589883544,18.67774968,1809.1,1809.0,2.69612468]
[1680589883871,19.25739722,1809.1,1809.0,2.55560469]
[1680589890173,19.24939722,1809.1,1809.0,2.41583469]
[1680589890675,19.24939722,1809.1,1808.7,0.006]
[1680589890834,0.22115,1808.7,1808.5,0.006]
[1680589891040,6.53418218,1808.6,1808.5,0.006]
[1680589891241,6.53618218,1808.6,1808.5,0.006]
[1680589891473,6.53618218,1808.6,1808.3,0.02429629]
[1680589891879,6.31502218,1808.6,1808.3,0.02429629]
[1680589892197,6.31502218,1808.6,1808.4,0.36743371]
[1680589893075,6.31502218,1808.6,1808.3,0.02429629]
[1680589897978,6.31502218,1808.6,1808.4,0.98251519]
[1680589898183,6.31502218,1808.6,1808.4,0.98851519]
[1680589899179,6.53618218,1808.6,1808.4,0.98851519]
[1680589901369,6.53618218,1808.6,1808.4,3.48851519]
[1680589908872,6.54418218,1808.6,1808.4,3.48039162]